[Event "Titled Tuesday Blitz February 22 Early 2022"]
[White "Tymrakiewicz, Rafal"]
[Black "Liyanage, Ranindu Dilshan"]
[WhiteFideId "1108832"]
[BlackFideId "9915834"]
[WhiteElo "2205"]
[BlackElo "1858"]
[Result "1-0"]
[Round "09"]
[TimeControl "180+1"]
[Date "2022.02.22"]
[WhiteClock "0:00:33"]
[BlackClock "0:01:08"]

1. d4 {[%clk 0:03:00]}  Nf6 {[%clk 0:02:59]} 2. Bg5 {[%clk 0:03:00]}  e6 {[%clk 0:03:00]} 3. Nd2 {[%clk 0:03:00]}  d5 {[%clk 0:02:59]} 4. e3 {[%clk 0:02:59]}  Be7 {[%clk 0:02:57]} 5. Bd3 {[%clk 0:02:59]}  Nbd7 {[%clk 0:02:57]} 6. f4 {[%clk 0:02:59]}  b6 {[%clk 0:02:57]} 7. Ngf3 {[%clk 0:02:51]}  Bb7 {[%clk 0:02:57]} 8. Ne5 {[%clk 0:02:49]}  Nxe5 {[%clk 0:02:55]} 9. fxe5 {[%clk 0:02:49]}  Ne4 {[%clk 0:02:54]} 10. Bxe7 {[%clk 0:02:50]}  Qxe7 {[%clk 0:02:55]} 11. O-O {[%clk 0:02:50]}  O-O {[%clk 0:02:54]} 12. Nxe4 {[%clk 0:02:46]}  dxe4 {[%clk 0:02:54]} 13. Bc4 {[%clk 0:02:45]}  Qg5 {[%clk 0:02:53]} 14. Qe2 {[%clk 0:02:43]}  Rad8 {[%clk 0:02:50]} 15. c3 {[%clk 0:02:40]}  c5 {[%clk 0:02:50]} 16. Rf2 {[%clk 0:02:31]}  cxd4 {[%clk 0:02:49]} 17. cxd4 {[%clk 0:02:31]}  Rc8 {[%clk 0:02:47]} 18. Raf1 {[%clk 0:02:28]}  Rc7 {[%clk 0:02:47]} 19. Bxe6 {[%clk 0:02:17]}  h6 {[%clk 0:02:20]} 20. Bb3 {[%clk 0:02:12]}  Re7 {[%clk 0:02:15]} 21. Rf4 {[%clk 0:02:09]}  Qg6 {[%clk 0:02:06]} 22. Rg4 {[%clk 0:02:07]}  Qc6 {[%clk 0:02:02]} 23. Rf6 {[%clk 0:02:02]}  Qc8 {[%clk 0:01:54]} 24. Rfg6 {[%clk 0:02:02]}  Qc1+ {[%clk 0:01:51]} 25. Kf2 {[%clk 0:02:00]}  Re6 {[%clk 0:01:45]} 26. Rxg7+ {[%clk 0:01:59]}  Kh8 {[%clk 0:01:45]} 27. Kg3 {[%clk 0:01:40]}  Bc8 {[%clk 0:01:34]} 28. Qf2 {[%clk 0:01:30]}  h5 {[%clk 0:01:28]} 29. R4g5 {[%clk 0:01:19]}  h4+ {[%clk 0:01:28]} 30. Kxh4 {[%clk 0:01:04]}  Rh6+ {[%clk 0:01:28]} 31. Kg3 {[%clk 0:01:02]}  Qh1 {[%clk 0:01:27]} 32. Rg8+ {[%clk 0:00:33]}  Rxg8 {[%clk 0:01:08]} 33. Rxg8+ {[%clk 0:00:33]} 1-0


[Site "https://www.chess.com"]

[Event "Titled Tuesday Blitz February 22 Early 2022"]
[White "Van den Dikkenberg, Erik"]
[Black "Lakshmi C"]
[WhiteFideId "1005880"]
[BlackFideId "25035347"]
[WhiteElo "2118"]
[BlackElo "1775"]
[Result "1/2-1/2"]
[Round "09"]
[TimeControl "180+1"]
[Date "2022.02.22"]
[WhiteClock "0:00:31"]
[BlackClock "0:00:28"]

1. e4 {[%clk 0:03:00]}  c5 {[%clk 0:02:51]} 2. Nc3 {[%clk 0:03:00]}  Nc6 {[%clk 0:02:51]} 3. Bb5 {[%clk 0:02:59]}  g6 {[%clk 0:02:50]} 4. Bxc6 {[%clk 0:02:58]}  dxc6 {[%clk 0:02:46]} 5. f4 {[%clk 0:02:59]}  Bg7 {[%clk 0:02:45]} 6. Nf3 {[%clk 0:02:59]}  e6 {[%clk 0:02:45]} 7. d3 {[%clk 0:02:59]}  Ne7 {[%clk 0:02:45]} 8. O-O {[%clk 0:02:59]}  O-O {[%clk 0:02:43]} 9. Kh1 {[%clk 0:02:56]}  f5 {[%clk 0:02:43]} 10. e5 {[%clk 0:02:56]}  Nd5 {[%clk 0:02:42]} 11. Bd2 {[%clk 0:02:53]}  Rb8 {[%clk 0:02:18]} 12. a4 {[%clk 0:02:52]}  a6 {[%clk 0:02:14]} 13. a5 {[%clk 0:02:51]}  b5 {[%clk 0:02:12]} 14. axb6 {[%clk 0:02:44]}  Nxb6 {[%clk 0:02:11]} 15. b3 {[%clk 0:02:38]}  Nd5 {[%clk 0:02:07]} 16. Na4 {[%clk 0:02:36]}  Qe7 {[%clk 0:02:01]} 17. c4 {[%clk 0:02:21]}  Nb6 {[%clk 0:01:57]} 18. Nxb6 {[%clk 0:01:42]}  Rxb6 {[%clk 0:01:56]} 19. Ra5 {[%clk 0:01:41]}  Rd8 {[%clk 0:01:56]} 20. Be3 {[%clk 0:01:37]}  Qb7 {[%clk 0:01:55]} 21. Bxc5 {[%clk 0:01:20]}  Rxb3 {[%clk 0:01:55]} 22. d4 {[%clk 0:01:08]}  Bf8 {[%clk 0:01:12]} 23. Bxf8 {[%clk 0:01:07]}  Kxf8 {[%clk 0:01:11]} 24. d5 {[%clk 0:00:59]}  cxd5 {[%clk 0:01:09]} 25. cxd5 {[%clk 0:00:59]}  Rxd5 {[%clk 0:01:08]} 26. Rxd5 {[%clk 0:00:57]}  Qxd5 {[%clk 0:01:07]} 27. Qxd5 {[%clk 0:00:52]}  exd5 {[%clk 0:01:07]} 28. Rc1 {[%clk 0:00:52]}  Bd7 {[%clk 0:01:06]} 29. h3 {[%clk 0:00:47]}  a5 {[%clk 0:01:01]} 30. Ng5 {[%clk 0:00:44]}  h6 {[%clk 0:00:59]} 31. Nh7+ {[%clk 0:00:44]}  Ke7 {[%clk 0:00:56]} 32. Nf6 {[%clk 0:00:44]}  Be6 {[%clk 0:00:54]} 33. Rc7+ {[%clk 0:00:43]}  Kf8 {[%clk 0:00:32]} 34. Rc6 {[%clk 0:00:34]}  Kf7 {[%clk 0:00:31]} 35. Rc7+ {[%clk 0:00:34]}  Kf8 {[%clk 0:00:31]} 36. Nh7+ {[%clk 0:00:32]}  Ke8 {[%clk 0:00:28]} 37. Nf6+ {[%clk 0:00:31]}  Kf8 {[%clk 0:00:28]} 1/2-1/2


[Site "https://www.chess.com"]

[Event "Titled Tuesday Blitz February 22 Early 2022"]
[White "Vidit, Santosh Gujrathi"]
[Black "Ponkratov, Pavel"]
[WhiteFideId "5029465"]
[BlackFideId "4157800"]
[WhiteElo "2654"]
[BlackElo "2487"]
[Result "1-0"]
[Round "09"]
[TimeControl "180+1"]
[Date "2022.02.22"]
[WhiteClock "0:00:16"]
[BlackClock "0:01:05"]

1. d4 {[%clk 0:03:00]}  d5 {[%clk 0:02:58]} 2. c4 {[%clk 0:03:01]}  dxc4 {[%clk 0:02:58]} 3. e4 {[%clk 0:03:00]}  c5 {[%clk 0:02:55]} 4. d5 {[%clk 0:02:59]}  e6 {[%clk 0:02:55]} 5. Nc3 {[%clk 0:02:56]}  Nf6 {[%clk 0:02:55]} 6. Bxc4 {[%clk 0:02:55]}  exd5 {[%clk 0:02:55]} 7. Nxd5 {[%clk 0:02:56]}  Be7 {[%clk 0:02:47]} 8. Bf4 {[%clk 0:02:42]}  Nxd5 {[%clk 0:02:38]} 9. Bxd5 {[%clk 0:02:43]}  O-O {[%clk 0:02:36]} 10. Ne2 {[%clk 0:02:43]}  Nc6 {[%clk 0:02:34]} 11. O-O {[%clk 0:02:41]}  Nb4 {[%clk 0:02:31]} 12. Nc3 {[%clk 0:02:40]}  Bf6 {[%clk 0:02:18]} 13. Bd6 {[%clk 0:02:25]}  Re8 {[%clk 0:02:11]} 14. Bxc5 {[%clk 0:02:08]}  Bxc3 {[%clk 0:02:10]} 15. bxc3 {[%clk 0:02:09]}  Nxd5 {[%clk 0:02:10]} 16. Qxd5 {[%clk 0:02:00]}  Qxd5 {[%clk 0:02:02]} 17. exd5 {[%clk 0:02:01]}  b6 {[%clk 0:02:03]} 18. Be3 {[%clk 0:01:47]}  Ba6 {[%clk 0:01:55]} 19. Rfd1 {[%clk 0:01:46]}  Rac8 {[%clk 0:01:54]} 20. a4 {[%clk 0:01:30]}  Rxc3 {[%clk 0:01:50]} 21. a5 {[%clk 0:01:30]}  bxa5 {[%clk 0:01:41]} 22. Rxa5 {[%clk 0:01:09]}  Be2 {[%clk 0:01:41]} 23. Re1 {[%clk 0:01:07]}  Bc4 {[%clk 0:01:39]} 24. Rc5 {[%clk 0:01:03]}  f5 {[%clk 0:01:30]} 25. d6 {[%clk 0:00:47]}  Rd8 {[%clk 0:01:29]} 26. Bd4 {[%clk 0:00:29]}  Rc2 {[%clk 0:01:25]} 27. Rc7 {[%clk 0:00:29]}  g6 {[%clk 0:01:12]} 28. Bf6 {[%clk 0:00:17]}  Rf8 {[%clk 0:01:05]} 29. Rg7+ {[%clk 0:00:16]}  Kh8 {[%clk 0:01:05]} 30. Rf7+ {[%clk 0:00:16]}  Kg8 {[%clk 0:01:04]} 31. Rxf8+ {[%clk 0:00:16]}  Kxf8 {[%clk 0:01:05]} 32. d7 {[%clk 0:00:16]} 1-0


[Site "https://www.chess.com"]

[Event "Titled Tuesday Blitz February 22 Early 2022"]
[White "Vifleemskaia, Svetlana"]
[Black "Von Buelow, Georg"]
[WhiteFideId "4129490"]
[BlackFideId "4620658"]
[WhiteElo "1901"]
[BlackElo "2205"]
[Result "0-1"]
[Round "09"]
[TimeControl "180+1"]
[Date "2022.02.22"]
[WhiteClock "0:01:18"]
[BlackClock "0:02:07"]

1. d4 {[%clk 0:02:31]}  d5 {[%clk 0:02:59]} 2. c4 {[%clk 0:02:30]}  dxc4 {[%clk 0:02:58]} 3. Nf3 {[%clk 0:02:29]}  Nf6 {[%clk 0:02:56]} 4. e3 {[%clk 0:02:29]}  a6 {[%clk 0:02:55]} 5. Bxc4 {[%clk 0:02:29]}  e6 {[%clk 0:02:54]} 6. O-O {[%clk 0:02:28]}  c5 {[%clk 0:02:51]} 7. Qe2 {[%clk 0:02:27]}  Nc6 {[%clk 0:02:45]} 8. Rd1 {[%clk 0:02:26]}  Qc7 {[%clk 0:02:38]} 9. Nc3 {[%clk 0:02:22]}  Be7 {[%clk 0:02:36]} 10. d5 {[%clk 0:02:20]}  exd5 {[%clk 0:02:36]} 11. Nxd5 {[%clk 0:02:20]}  Nxd5 {[%clk 0:02:36]} 12. Bxd5 {[%clk 0:02:20]}  O-O {[%clk 0:02:37]} 13. h3 {[%clk 0:02:17]}  Nb4 {[%clk 0:02:31]} 14. Bb3 {[%clk 0:02:10]}  b5 {[%clk 0:02:26]} 15. Bd2 {[%clk 0:01:32]}  c4 {[%clk 0:02:22]} 16. Bxb4 {[%clk 0:01:31]}  Bxb4 {[%clk 0:02:20]} 17. Bc2 {[%clk 0:01:30]}  Bb7 {[%clk 0:02:18]} 18. Nd4 {[%clk 0:01:25]}  Qe5 {[%clk 0:02:08]} 19. Qh5 {[%clk 0:01:18]}  Qxh5 {[%clk 0:02:07]} 0-1


[Site "https://www.chess.com"]

[Event "Titled Tuesday Blitz February 22 Early 2022"]
[White "Voege, Tobias"]
[Black "Zheenbekov, Nurgazy"]
[WhiteFideId "1270513"]
[BlackFideId "13800485"]
[WhiteElo "2335"]
[BlackElo "1959"]
[Result "1-0"]
[Round "09"]
[TimeControl "180+1"]
[Date "2022.02.22"]
[WhiteClock "0:00:10"]
[BlackClock "0:00:17"]

1. d4 {[%clk 0:03:00]}  Nf6 {[%clk 0:02:56]} 2. c4 {[%clk 0:03:00]}  e6 {[%clk 0:02:56]} 3. Nf3 {[%clk 0:03:00]}  b6 {[%clk 0:02:55]} 4. Nc3 {[%clk 0:02:59]}  Bb7 {[%clk 0:02:53]} 5. Bg5 {[%clk 0:02:59]}  Bb4 {[%clk 0:02:51]} 6. e3 {[%clk 0:02:59]}  h6 {[%clk 0:02:50]} 7. Bh4 {[%clk 0:02:59]}  O-O {[%clk 0:02:50]} 8. Qc2 {[%clk 0:02:58]}  d5 {[%clk 0:02:50]} 9. cxd5 {[%clk 0:02:57]}  exd5 {[%clk 0:02:49]} 10. Bd3 {[%clk 0:02:56]}  Nbd7 {[%clk 0:02:49]} 11. O-O {[%clk 0:02:56]}  a6 {[%clk 0:02:48]} 12. Ne5 {[%clk 0:02:56]}  Be7 {[%clk 0:02:43]} 13. f4 {[%clk 0:02:53]}  c5 {[%clk 0:02:40]} 14. Kh1 {[%clk 0:02:43]}  Rc8 {[%clk 0:02:28]} 15. Bf5 {[%clk 0:02:39]}  Rc7 {[%clk 0:02:28]} 16. g4 {[%clk 0:02:35]}  cxd4 {[%clk 0:02:20]} 17. exd4 {[%clk 0:02:34]}  Nxe5 {[%clk 0:02:15]} 18. fxe5 {[%clk 0:02:25]}  Ne4 {[%clk 0:02:15]} 19. Bxe7 {[%clk 0:02:23]}  Qxe7 {[%clk 0:02:14]} 20. Rae1 {[%clk 0:02:13]}  Rfc8 {[%clk 0:02:10]} 21. Bxc8 {[%clk 0:02:11]}  Nxc3 {[%clk 0:01:28]} 22. bxc3 {[%clk 0:01:57]}  Bxc8 {[%clk 0:01:26]} 23. h3 {[%clk 0:01:53]}  h5 {[%clk 0:01:23]} 24. gxh5 {[%clk 0:01:28]}  Qh4 {[%clk 0:01:07]} 25. Re3 {[%clk 0:01:19]}  Qxh5 {[%clk 0:01:04]} 26. Qg2 {[%clk 0:01:14]}  Be6 {[%clk 0:00:59]} 27. Kh2 {[%clk 0:01:10]}  g6 {[%clk 0:00:58]} 28. Rg3 {[%clk 0:00:55]}  Rc8 {[%clk 0:00:55]} 29. Rf6 {[%clk 0:00:52]}  Kg7 {[%clk 0:00:50]} 30. Qf2 {[%clk 0:00:38]}  Rh8 {[%clk 0:00:39]} 31. Rxe6 {[%clk 0:00:16]}  fxe6 {[%clk 0:00:39]} 32. Qf6+ {[%clk 0:00:17]}  Kh7 {[%clk 0:00:39]} 33. Qf7+ {[%clk 0:00:12]}  Kh6 {[%clk 0:00:37]} 34. Rg4 {[%clk 0:00:11]}  b5 {[%clk 0:00:17]} 35. Qf6 {[%clk 0:00:10]} 1-0


[Site "https://www.chess.com"]

[Event "Titled Tuesday Blitz February 22 Early 2022"]
[White "Weetik, Vjacheslav"]
[Black "Weishaeutel, Moritz"]
[WhiteFideId "4153472"]
[BlackFideId "12967300"]
[WhiteElo "2469"]
[BlackElo "2002"]
[Result "1-0"]
[Round "09"]
[TimeControl "180+1"]
[Date "2022.02.22"]
[WhiteClock "0:00:21"]
[BlackClock "0:00:57"]

1. e4 {[%clk 0:02:59]}  e6 {[%clk 0:02:51]} 2. d3 {[%clk 0:02:56]}  d5 {[%clk 0:02:51]} 3. Qe2 {[%clk 0:02:56]}  Nf6 {[%clk 0:02:49]} 4. Nf3 {[%clk 0:02:56]}  Be7 {[%clk 0:02:45]} 5. g3 {[%clk 0:02:56]}  O-O {[%clk 0:02:46]} 6. Bg2 {[%clk 0:02:56]}  b6 {[%clk 0:02:46]} 7. O-O {[%clk 0:02:52]}  Ba6 {[%clk 0:02:45]} 8. c4 {[%clk 0:02:39]}  dxe4 {[%clk 0:02:29]} 9. dxe4 {[%clk 0:02:38]}  c5 {[%clk 0:02:25]} 10. e5 {[%clk 0:02:23]}  Nd5 {[%clk 0:02:21]} 11. Qe4 {[%clk 0:01:29]}  Nc7 {[%clk 0:02:20]} 12. Nc3 {[%clk 0:01:27]}  Nd7 {[%clk 0:02:07]} 13. Rd1 {[%clk 0:01:21]}  Qc8 {[%clk 0:02:04]} 14. Ng5 {[%clk 0:01:21]}  Bxg5 {[%clk 0:01:56]} 15. Bxg5 {[%clk 0:01:20]}  Rb8 {[%clk 0:01:57]} 16. Be7 {[%clk 0:00:57]}  Re8 {[%clk 0:01:55]} 17. Bd6 {[%clk 0:00:56]}  Bb7 {[%clk 0:01:52]} 18. Qg4 {[%clk 0:00:56]}  Bxg2 {[%clk 0:01:51]} 19. Kxg2 {[%clk 0:00:57]}  Rb7 {[%clk 0:01:47]} 20. Ne4 {[%clk 0:00:55]}  Qd8 {[%clk 0:01:23]} 21. Rd3 {[%clk 0:00:44]}  f5 {[%clk 0:01:17]} 22. exf6 {[%clk 0:00:43]}  Nxf6 {[%clk 0:01:17]} 23. Nxf6+ {[%clk 0:00:33]}  Qxf6 {[%clk 0:01:18]} 24. Qe4 {[%clk 0:00:33]}  Reb8 {[%clk 0:01:09]} 25. Rf3 {[%clk 0:00:22]}  Qg6 {[%clk 0:00:57]} 26. Qxb7 {[%clk 0:00:21]} 1-0


[Site "https://www.chess.com"]

[Event "Titled Tuesday Blitz February 22 Early 2022"]
[White "Winkels, Marcel"]
[Black "Karavaeva, Olga"]
[WhiteFideId "1003887"]
[BlackFideId "4124111"]
[WhiteElo "1900"]
[BlackElo "2105"]
[Result "0-1"]
[Round "09"]
[TimeControl "180+1"]
[Date "2022.02.22"]
[WhiteClock "0:00:08"]
[BlackClock "0:00:38"]

1. e4 {[%clk 0:03:00]}  c5 {[%clk 0:02:59]} 2. Nf3 {[%clk 0:03:01]}  e6 {[%clk 0:02:58]} 3. d4 {[%clk 0:03:01]}  cxd4 {[%clk 0:02:58]} 4. Nxd4 {[%clk 0:03:02]}  Nf6 {[%clk 0:02:58]} 5. Nc3 {[%clk 0:03:02]}  Nc6 {[%clk 0:02:56]} 6. Ndb5 {[%clk 0:03:01]}  d6 {[%clk 0:02:56]} 7. Bf4 {[%clk 0:03:00]}  e5 {[%clk 0:02:56]} 8. Bg5 {[%clk 0:03:00]}  a6 {[%clk 0:02:55]} 9. Na3 {[%clk 0:02:59]}  b5 {[%clk 0:02:55]} 10. Bxf6 {[%clk 0:02:56]}  gxf6 {[%clk 0:02:56]} 11. Nd5 {[%clk 0:02:56]}  Bg7 {[%clk 0:02:57]} 12. c3 {[%clk 0:02:55]}  f5 {[%clk 0:02:57]} 13. exf5 {[%clk 0:02:53]}  Bxf5 {[%clk 0:02:58]} 14. Nc2 {[%clk 0:02:53]}  O-O {[%clk 0:02:58]} 15. Nce3 {[%clk 0:02:53]}  Bg6 {[%clk 0:02:58]} 16. Bd3 {[%clk 0:02:54]}  f5 {[%clk 0:02:58]} 17. Bc2 {[%clk 0:02:44]}  e4 {[%clk 0:02:58]} 18. O-O {[%clk 0:02:40]}  Ne5 {[%clk 0:02:57]} 19. f4 {[%clk 0:02:27]}  Nd7 {[%clk 0:02:46]} 20. a3 {[%clk 0:02:21]}  Nc5 {[%clk 0:02:41]} 21. b4 {[%clk 0:02:18]}  Ne6 {[%clk 0:02:40]} 22. Bb3 {[%clk 0:02:18]}  Kh8 {[%clk 0:02:40]} 23. c4 {[%clk 0:02:09]}  Nd4 {[%clk 0:02:35]} 24. Ba2 {[%clk 0:02:03]}  Rc8 {[%clk 0:02:31]} 25. Rc1 {[%clk 0:02:01]}  Qe8 {[%clk 0:02:18]} 26. Nc2 {[%clk 0:01:50]}  Ne6 {[%clk 0:02:02]} 27. Nce3 {[%clk 0:01:46]}  bxc4 {[%clk 0:02:00]} 28. Bxc4 {[%clk 0:01:42]}  Bh5 {[%clk 0:01:56]} 29. Qd2 {[%clk 0:01:37]}  Rg8 {[%clk 0:01:35]} 30. Bxa6 {[%clk 0:01:31]}  Rxc1 {[%clk 0:01:26]} 31. Rxc1 {[%clk 0:01:27]}  Qa8 {[%clk 0:01:22]} 32. b5 {[%clk 0:01:22]}  Nc5 {[%clk 0:01:20]} 33. Nxf5 {[%clk 0:01:08]}  Nb3 {[%clk 0:01:13]} 34. Qe1 {[%clk 0:00:56]}  Qxd5 {[%clk 0:01:07]} 35. Nxg7 {[%clk 0:00:40]}  Qd4+ {[%clk 0:01:07]} 36. Kh1 {[%clk 0:00:39]}  Nxc1 {[%clk 0:01:05]} 37. Nxh5 {[%clk 0:00:37]}  Nd3 {[%clk 0:01:01]} 38. Qf1 {[%clk 0:00:35]}  Nf2+ {[%clk 0:00:55]} 39. Kg1 {[%clk 0:00:33]}  Ng4+ {[%clk 0:00:53]} 40. Kh1 {[%clk 0:00:31]}  Ne3 {[%clk 0:00:53]} 41. Qg1 {[%clk 0:00:28]}  Rxg2 {[%clk 0:00:52]} 42. Qxg2 {[%clk 0:00:22]}  Nxg2 {[%clk 0:00:53]} 43. Kxg2 {[%clk 0:00:22]}  Qb2+ {[%clk 0:00:47]} 44. Kh3 {[%clk 0:00:21]}  Qxa3+ {[%clk 0:00:47]} 45. Ng3 {[%clk 0:00:20]}  e3 {[%clk 0:00:45]} 46. Kg2 {[%clk 0:00:19]}  d5 {[%clk 0:00:43]} 47. Bb7 {[%clk 0:00:16]}  Qb2+ {[%clk 0:00:40]} 48. Kf3 {[%clk 0:00:14]}  Qf2+ {[%clk 0:00:39]} 49. Kg4 {[%clk 0:00:13]}  e2 {[%clk 0:00:39]} 50. Nxe2 {[%clk 0:00:11]}  Qxe2+ {[%clk 0:00:40]} 51. Kf5 {[%clk 0:00:09]}  Qxb5 {[%clk 0:00:39]} 52. Bc8 {[%clk 0:00:08]}  d4+ {[%clk 0:00:38]} 0-1


[Site "https://www.chess.com"]

[Event "Titled Tuesday Blitz February 22 Early 2022"]
[White "Zlatin, Alexander"]
[Black "Borisova, Ekaterina"]
[WhiteFideId "2810549"]
[BlackFideId "34124184"]
[WhiteElo "2228"]
[BlackElo "2034"]
[Result "0-1"]
[Round "09"]
[TimeControl "180+1"]
[Date "2022.02.22"]
[WhiteClock "0:00:15"]
[BlackClock "0:00:45"]

1. e4 {[%clk 0:02:52]}  c6 {[%clk 0:02:59]} 2. d4 {[%clk 0:02:51]}  d5 {[%clk 0:03:00]} 3. exd5 {[%clk 0:02:52]}  cxd5 {[%clk 0:03:00]} 4. Bd3 {[%clk 0:02:52]}  Nc6 {[%clk 0:03:01]} 5. c3 {[%clk 0:02:53]}  Nf6 {[%clk 0:03:01]} 6. Nf3 {[%clk 0:02:50]}  Bg4 {[%clk 0:03:01]} 7. Bf4 {[%clk 0:02:49]}  e6 {[%clk 0:02:59]} 8. Nbd2 {[%clk 0:02:49]}  Bd6 {[%clk 0:03:00]} 9. Bg3 {[%clk 0:02:49]}  O-O {[%clk 0:02:58]} 10. O-O {[%clk 0:02:46]}  Rc8 {[%clk 0:02:57]} 11. Qe2 {[%clk 0:02:46]}  a6 {[%clk 0:02:53]} 12. a4 {[%clk 0:02:46]}  Na5 {[%clk 0:02:50]} 13. Qe3 {[%clk 0:02:47]}  Bh5 {[%clk 0:02:36]} 14. Ne5 {[%clk 0:02:44]}  Bxe5 {[%clk 0:02:26]} 15. Bxe5 {[%clk 0:02:41]}  Bg6 {[%clk 0:02:26]} 16. Bxg6 {[%clk 0:02:37]}  hxg6 {[%clk 0:02:26]} 17. h3 {[%clk 0:02:37]}  Nc4 {[%clk 0:02:23]} 18. Nxc4 {[%clk 0:02:36]}  Rxc4 {[%clk 0:02:23]} 19. Qg3 {[%clk 0:02:24]}  Qd7 {[%clk 0:02:19]} 20. a5 {[%clk 0:02:21]}  Qb5 {[%clk 0:02:13]} 21. Rfb1 {[%clk 0:02:03]}  Rfc8 {[%clk 0:02:05]} 22. f3 {[%clk 0:01:54]}  Ra4 {[%clk 0:01:59]} 23. Rxa4 {[%clk 0:01:32]}  Qxa4 {[%clk 0:01:58]} 24. b4 {[%clk 0:01:19]}  Rxc3 {[%clk 0:01:51]} 25. Bxf6 {[%clk 0:01:18]}  gxf6 {[%clk 0:01:52]} 26. Qb8+ {[%clk 0:01:18]}  Kg7 {[%clk 0:01:51]} 27. Qxb7 {[%clk 0:01:19]}  Qc2 {[%clk 0:01:47]} 28. Rf1 {[%clk 0:01:13]}  Qd2 {[%clk 0:01:47]} 29. Rf2 {[%clk 0:01:08]}  Qxd4 {[%clk 0:01:43]} 30. Qb6 {[%clk 0:00:59]}  Rc1+ {[%clk 0:01:36]} 31. Kh2 {[%clk 0:00:59]}  Qe5+ {[%clk 0:01:37]} 32. f4 {[%clk 0:00:58]}  Qe1 {[%clk 0:01:32]} 33. Rf3 {[%clk 0:00:49]}  Rb1 {[%clk 0:01:17]} 34. Qxa6 {[%clk 0:00:46]}  Qxb4 {[%clk 0:01:10]} 35. Qa8 {[%clk 0:00:27]}  Ra1 {[%clk 0:01:08]} 36. a6 {[%clk 0:00:27]}  Qb6 {[%clk 0:01:08]} 37. f5 {[%clk 0:00:25]}  Rxa6 {[%clk 0:00:58]} 38. Qc8 {[%clk 0:00:19]}  Qd6+ {[%clk 0:00:53]} 39. Rg3 {[%clk 0:00:17]}  exf5 {[%clk 0:00:50]} 40. h4 {[%clk 0:00:17]}  Ra3 {[%clk 0:00:49]} 41. Kg1 {[%clk 0:00:14]}  Qxg3 {[%clk 0:00:47]} 42. Qc1 {[%clk 0:00:14]}  Qe3+ {[%clk 0:00:46]} 43. Kh1 {[%clk 0:00:14]}  Qxc1+ {[%clk 0:00:46]} 44. Kh2 {[%clk 0:00:15]}  Qf4+ {[%clk 0:00:45]} 0-1


[Site "https://www.chess.com"]

[Event "Titled Tuesday Blitz February 22 Early 2022"]
[White "wisdomboy"]
[Black "De Verdier, Michael"]
[BlackFideId "1710516"]
[WhiteElo "2445"]
[BlackElo "2301"]
[Result "0-1"]
[Round "09"]
[TimeControl "180+1"]
[Date "2022.02.22"]
[WhiteClock "0:00:19"]
[BlackClock "0:00:16"]

1. d4 {[%clk 0:03:00]}  Nf6 {[%clk 0:02:56]} 2. c4 {[%clk 0:03:00]}  d6 {[%clk 0:02:56]} 3. Nc3 {[%clk 0:02:59]}  e5 {[%clk 0:02:57]} 4. e3 {[%clk 0:02:57]}  Nc6 {[%clk 0:02:52]} 5. Nf3 {[%clk 0:02:56]}  Bg4 {[%clk 0:02:50]} 6. Be2 {[%clk 0:02:55]}  g6 {[%clk 0:02:49]} 7. O-O {[%clk 0:02:55]}  Bg7 {[%clk 0:02:49]} 8. h3 {[%clk 0:02:55]}  Bd7 {[%clk 0:02:44]} 9. Nd5 {[%clk 0:02:51]}  O-O {[%clk 0:02:43]} 10. Nxf6+ {[%clk 0:02:37]}  Bxf6 {[%clk 0:02:41]} 11. Bd2 {[%clk 0:02:37]}  exd4 {[%clk 0:02:39]} 12. exd4 {[%clk 0:02:37]}  Nxd4 {[%clk 0:02:36]} 13. Bh6 {[%clk 0:02:26]}  Nxe2+ {[%clk 0:02:29]} 14. Qxe2 {[%clk 0:02:27]}  Re8 {[%clk 0:02:30]} 15. Qc2 {[%clk 0:02:25]}  Bc6 {[%clk 0:02:28]} 16. Qb3 {[%clk 0:02:23]}  Qd7 {[%clk 0:02:13]} 17. Rfe1 {[%clk 0:02:21]}  Rxe1+ {[%clk 0:02:11]} 18. Rxe1 {[%clk 0:02:22]}  Re8 {[%clk 0:02:11]} 19. Rd1 {[%clk 0:02:19]}  Qe6 {[%clk 0:02:06]} 20. Qd3 {[%clk 0:02:10]}  Qe4 {[%clk 0:02:01]} 21. b4 {[%clk 0:02:03]}  Qxd3 {[%clk 0:01:59]} 22. Rxd3 {[%clk 0:02:04]}  Re2 {[%clk 0:01:52]} 23. Nd4 {[%clk 0:01:53]}  Re1+ {[%clk 0:01:45]} 24. Kh2 {[%clk 0:01:53]}  Be5+ {[%clk 0:01:43]} 25. f4 {[%clk 0:01:52]}  Bxd4 {[%clk 0:01:37]} 26. Rxd4 {[%clk 0:01:51]}  Re2 {[%clk 0:01:38]} 27. Kg3 {[%clk 0:01:44]}  Rxg2+ {[%clk 0:01:34]} 28. Kh4 {[%clk 0:01:44]}  Rxa2 {[%clk 0:01:17]} 29. b5 {[%clk 0:01:43]}  Bd7 {[%clk 0:01:18]} 30. Re4 {[%clk 0:01:42]}  Be6 {[%clk 0:01:18]} 31. f5 {[%clk 0:01:36]}  gxf5 {[%clk 0:01:12]} 32. Re1 {[%clk 0:01:33]}  Rg2 {[%clk 0:01:07]} 33. Ra1 {[%clk 0:01:31]}  Rg6 {[%clk 0:01:07]} 34. Kh5 {[%clk 0:01:16]}  Bxc4 {[%clk 0:00:57]} 35. Re1 {[%clk 0:01:14]}  Be6 {[%clk 0:00:39]} 36. Rc1 {[%clk 0:01:04]}  Bd5 {[%clk 0:00:34]} 37. Rc3 {[%clk 0:00:54]}  f6 {[%clk 0:00:27]} 38. Be3 {[%clk 0:00:45]}  c6 {[%clk 0:00:21]} 39. bxc6 {[%clk 0:00:43]}  Bxc6 {[%clk 0:00:22]} 40. Bxa7 {[%clk 0:00:43]}  Kf7 {[%clk 0:00:20]} 41. Bd4 {[%clk 0:00:41]}  Ke6 {[%clk 0:00:20]} 42. Re3+ {[%clk 0:00:40]}  Kd5 {[%clk 0:00:20]} 43. Bb2 {[%clk 0:00:41]}  Kc4 {[%clk 0:00:19]} 44. Rc3+ {[%clk 0:00:40]}  Kb4 {[%clk 0:00:19]} 45. Re3 {[%clk 0:00:39]}  f4 {[%clk 0:00:19]} 46. Rd3 {[%clk 0:00:34]}  f3 {[%clk 0:00:18]} 47. Bd4 {[%clk 0:00:24]}  Kc4 {[%clk 0:00:18]} 48. Rd2 {[%clk 0:00:24]}  Rg2 {[%clk 0:00:18]} 49. Rd1 {[%clk 0:00:24]}  b5 {[%clk 0:00:15]} 50. Bxf6 {[%clk 0:00:23]}  f2 {[%clk 0:00:13]} 51. Rc1+ {[%clk 0:00:23]}  Kd3 {[%clk 0:00:13]} 52. Bh4 {[%clk 0:00:20]}  Ke2 {[%clk 0:00:13]} 53. Bxf2 {[%clk 0:00:19]}  Be8+ {[%clk 0:00:11]} 54. Kh6 {[%clk 0:00:18]}  Rxf2 {[%clk 0:00:12]} 55. Kxh7 {[%clk 0:00:18]}  Rh2 {[%clk 0:00:13]} 56. Kg7 {[%clk 0:00:18]}  Rxh3 {[%clk 0:00:13]} 57. Kf8 {[%clk 0:00:18]}  Bh5 {[%clk 0:00:13]} 58. Ke7 {[%clk 0:00:19]}  d5 {[%clk 0:00:13]} 59. Rc5 {[%clk 0:00:18]}  d4 {[%clk 0:00:12]} 60. Rxb5 {[%clk 0:00:18]}  d3 {[%clk 0:00:13]} 61. Re5+ {[%clk 0:00:19]}  Kd2 {[%clk 0:00:14]} 62. Kd6 {[%clk 0:00:19]}  Be2 {[%clk 0:00:14]} 63. Kd5 {[%clk 0:00:20]}  Rh5 {[%clk 0:00:14]} 64. Rxh5 {[%clk 0:00:18]}  Bxh5 {[%clk 0:00:14]} 65. Kd4 {[%clk 0:00:18]}  Ke2 {[%clk 0:00:15]} 66. Ke4 {[%clk 0:00:19]}  d2 {[%clk 0:00:15]} 67. Kf4 {[%clk 0:00:19]}  d1=Q {[%clk 0:00:16]} 0-1


[Site "https://www.chess.com"]